bitfinex/quotes_ETHUSD_20251018
["timestamp","ask_amount","ask_price","bid_price","bid_amount"]
[1760784645268,0.4561,3892.2,3892.0,2.56937043]
[1760784645472,0.4561,3892.1,3892.0,2.56937043]
[1760784645777,0.001,3892.5,3892.4,2.56910903]
[1760784645981,0.4571,3892.5,3892.4,2.59134298]
[1760784646170,0.4571,3892.5,3892.4,2.56910903]
[1760784646811,0.001,3892.5,3892.4,3.22840012]
[1760784646954,0.001,3892.5,3892.4,3.20270903]
[1760784647360,0.4601,3892.5,3892.4,3.77990326]
[1760784647659,0.001,3892.5,3892.4,3.77990326]
[1760784648799,0.001,3892.5,3892.4,3.80559435]
[1760784651024,0.4601,3892.5,3892.4,0.6336]
[1760784651302,0.001,3892.5,3892.4,3.20270903]
[1760784652089,0.001,3892.5,3892.4,3.20470903]
[1760784652763,0.001,3892.5,3892.4,3.33270903]
[1760784655400,0.4601,3892.5,3892.4,3.33270903]
[1760784656295,0.4601,3892.5,3892.4,3.92290341]
[1760784656499,0.4601,3892.5,3892.4,4.69541537]
[1760784656699,0.4601,3892.5,3892.4,0.90251196]
[1760784656905,0.4601,3892.5,3892.4,3.47162099]
[1760784658574,0.4601,3892.5,3892.4,2.69910903]
[1760784658894,0.4601,3892.5,3892.4,0.13]
[1760784659779,0.50487347,3892.5,3892.4,0.13]
[1760784660104,0.4601,3892.5,3892.4,0.13]
[1760784662001,1.05977737,3892.5,3892.4,0.002]
[1760784663784,1.10455333,3892.5,3892.4,0.002]
[1760784664186,1.05977737,3892.5,3892.4,0.002]
[1760784664796,1.08542051,3892.5,3892.4,0.002]
[1760784665222,1.05977737,3892.5,3892.0,0.002]
[1760784665385,1.728,3892.0,3891.8,0.502]
[1760784665582,0.68564314,3891.9,3891.8,0.502]
[1760784666510,0.66,3891.9,3891.8,0.502]
[1760784666679,0.68564314,3891.9,3891.8,0.502]
[1760784666886,6.22231684,3891.9,3891.8,0.502]
[1760784667120,7.20425155,3891.9,3891.8,0.502]
[1760784667492,14.38429965,3891.9,3891.8,0.502]
[1760784667785,14.78737935,3891.9,3891.8,0.502]
[1760784670484,25.47443635,3891.9,3891.8,0.502]
[1760784670683,31.86443635,3891.9,3891.8,0.502]
[1760784671138,24.01931735,3891.9,3891.8,0.502]
[1760784673801,1.728,3891.8,3891.6,0.002]
[1760784674097,0.02564314,3891.7,3891.6,0.002]
[1760784674289,0.46514314,3891.7,3891.6,0.002]
[1760784674495,5.20779714,3891.7,3891.6,0.002]
[1760784674734,5.182154,3891.7,3891.6,0.002]
[1760784675020,5.84179911,3891.7,3891.6,0.002]
[1760784675685,5.39987811,3891.7,3891.6,0.002]
[1760784676612,5.39987811,3891.7,3891.0,0.002]
[1760784676613,1.856,3891.6,3891.0,0.002]
[1760784676814,10.43959214,3891.5,3891.0,0.002]
[1760784677001,6.39059,3891.2,3891.0,0.002]
[1760784677199,17.10142794,3891.1,3891.0,0.002]
[1760784677409,2.552659,3891.1,3891.0,0.002]
[1760784677613,2.57830214,3891.1,3891.0,0.002]
[1760784677819,3.01780214,3891.1,3891.0,0.002]
[1760784678019,19.95599094,3891.1,3891.0,0.002]
[1760784678320,19.9303478,3891.1,3891.0,0.002]
[1760784678523,20.3783252,3891.1,3891.0,0.002]
[1760784678688,18.3938182,3891.1,3891.0,0.002]
[1760784682539,24.7838182,3891.1,3891.0,0.002]
[1760784682747,23.5548322,3891.1,3891.0,0.002]
[1760784683041,20.8188582,3891.1,3891.0,0.002]
[1760784683429,23.0395092,3891.1,3891.0,0.002]
[1760784685120,45.0099382,3891.1,3891.0,0.002]
[1760784685327,43.9149292,3891.1,3891.0,0.002]
[1760784685647,46.48489656,3891.1,3891.0,0.002]
[1760784685822,43.87013026,3891.1,3891.0,0.002]
[1760784686238,44.05807526,3891.1,3891.0,0.002]
[1760784686415,43.6548968,3891.1,3891.0,0.002]
[1760784686938,46.85846416,3891.1,3891.0,0.002]
[1760784687124,53.57444816,3891.1,3891.0,0.002]
[1760784687331,61.20566434,3891.1,3890.9,0.002]
[1760784687658,18.50822896,3891.0,3890.9,0.002]
[1760784687875,16.40721282,3891.0,3890.9,0.002]
[1760784688155,20.21674623,3891.0,3890.9,0.002]
[1760784688331,16.58782718,3890.7,3890.6,0.002]
[1760784688756,17.07213562,3890.7,3890.6,0.002]
[1760784688932,17.73178073,3890.7,3890.6,0.002]
[1760784689140,31.95827173,3890.7,3890.6,0.002]
[1760784689332,32.36149774,3890.7,3890.6,0.002]
[1760784689640,30.87691474,3890.7,3890.6,0.002]
[1760784689844,24.22823174,3890.7,3890.6,0.002]
[1760784690047,23.68013474,3890.7,3890.6,0.002]
[1760784690223,25.05025474,3890.7,3890.6,0.002]
[1760784690554,18.41947674,3890.7,3890.6,0.002]
[1760784690925,6.65128765,3890.7,3890.6,0.002]
[1760784691326,13.04128765,3890.7,3890.6,0.002]
[1760784696052,11.97841653,3890.7,3890.6,0.002]
[1760784696752,11.97841653,3890.7,3890.6,0.4336]
[1760784699551,8.56598232,3890.7,3890.6,0.4336]
[1760784700147,0.44798232,3890.7,3890.6,0.4336]
[1760784700662,0.40317388,3890.7,3890.6,0.4336]
[1760784703058,0.4479737,3890.7,3890.6,0.4336]
[1760784703946,0.4479737,3890.7,3890.6,0.002]
[1760784704173,0.40317388,3890.7,3890.6,0.002]
[1760784704365,0.44797533,3890.7,3890.6,0.002]
[1760784704731,2.61191702,3890.7,3890.6,0.002]
[1760784704958,3.34369959,3890.7,3890.6,0.002]
[1760784707776,3.38850786,3890.7,3890.6,0.002]
[1760784711762,2.98533398,3890.7,3890.6,0.002]
[1760784712605,9.37533398,3890.7,3890.6,0.002]
[1760784712906,9.34969084,3890.7,3890.6,0.002]
[1760784713146,25.02993984,3890.7,3890.6,0.002]
[1760784713517,20.42599984,3890.7,3890.6,0.002]
[1760784714358,19.34095184,3890.7,3890.6,0.002]
[1760784714762,19.74418027,3890.7,3890.6,0.002]
[1760784715268,19.12884827,3890.7,3890.6,0.002]
[1760784717674,17.24710927,3890.7,3890.6,0.002]
[1760784718522,28.80643827,3890.7,3890.6,0.002]
[1760784718721,26.29903527,3890.7,3890.6,0.002]
[1760784719268,24.94318627,3890.7,3890.6,0.002]
[1760784720525,28.280478,3890.6,3890.5,0.002]
[1760784720687,30.38035736,3890.6,3890.5,0.002]
[1760784720861,30.83545736,3890.6,3890.5,0.002]
[1760784721062,32.241889,3890.6,3890.5,0.002]
[1760784721247,32.241889,3890.6,3890.2,0.002]
[1760784721248,16.88278084,3890.3,3890.2,0.002]
[1760784721593,1.856,3890.2,3890.0,0.002]
[1760784721888,0.02564314,3890.1,3890.0,0.002]
[1760784722084,9.23234314,3890.1,3890.0,0.002]
[1760784722259,9.2067,3890.1,3890.0,0.002]
[1760784723468,9.25151371,3890.1,3890.0,0.002]
[1760784723669,10.97489753,3890.1,3890.0,0.002]
[1760784724609,26.505456,3890.0,3888.2,0.128]
[1760784724773,1.728,3888.2,3888.0,0.1262]
[1760784725100,0.02564314,3888.1,3888.0,0.1262]
[1760784727298,1.728,3888.2,3888.0,0.1262]
[1760784727605,0.07046815,3888.1,3888.0,0.1262]
[1760784728276,0.04482501,3888.1,3888.0,0.5556]
[1760784728605,0.07046815,3888.1,3888.0,0.5556]
[1760784729386,0.07046815,3888.1,3888.0,0.1262]
[1760784732495,0.04482501,3888.1,3888.0,0.1262]
[1760784733301,0.04482501,3888.1,3888.0,0.5556]
[1760784734216,1.77282501,3888.1,3888.0,0.1262]
[1760784734716,0.128,3888.0,3887.7,0.4294]
[1760784734873,0.128,3887.8,3887.5,0.4294]
[1760784735075,0.128,3887.8,3887.6,0.4294]
[1760784735318,0.128,3887.8,3887.7,0.4294]
[1760784735884,1.728,3887.7,3887.1,0.128]
[1760784736082,0.02564314,3887.6,3887.2,0.4294]
[1760784736283,0.02564314,3887.6,3887.3,0.4294]
[1760784736487,0.04482649,3887.6,3887.4,0.4294]
[1760784736884,0.04482649,3887.6,3887.5,0.4294]
[1760784741019,0.04482649,3887.6,3887.5,0.72979409]
[1760784741523,0.04482649,3887.6,3887.5,3.30214135]
[1760784742819,0.04482649,3887.6,3887.5,3.43014135]
[1760784743046,5.35052024,3889.5,3888.3,2.57177496]
[1760784743318,0.04481889,3888.3,3888.1,2.57190175]
[1760784743498,0.128,3888.8,3888.4,2.69794301]
[1760784743699,0.128,3888.8,3888.4,0.1262]
[1760784743906,0.128,3888.8,3888.5,0.45511685]
[1760784744093,0.128,3888.8,3888.6,0.4294]
[1760784746439,0.17281699,3888.8,3888.6,0.4294]
[1760784747302,0.17281699,3888.8,3888.4,0.5556]
[1760784747499,0.17281699,3888.8,3888.4,0.1262]
[1760784747699,0.17281699,3888.8,3888.5,0.4294]
[1760784747904,0.17281699,3888.8,3888.6,0.4294]
[1760784748206,0.17281699,3888.8,3888.7,0.4294]
[1760784748610,0.17281699,3888.8,3888.7,0.31273449]
[1760784748908,0.04481699,3888.8,3888.7,0.87013449]
[1760784749148,0.04481699,3888.8,3888.7,0.128]
[1760784749806,0.04481699,3888.8,3888.7,0.5574]
[1760784750335,0.47571699,3888.8,3888.1,0.1262]
[1760784750568,4.57690865,3888.6,3888.0,0.128]
[1760784750706,0.02564314,3888.5,3888.0,0.128]
[1760784751239,0.04481975,3888.4,3888.0,0.128]
[1760784751403,0.45654314,3888.3,3887.4,2.57238537]
[1760784751735,0.58454314,3888.3,3887.6,0.128]
[1760784753539,0.15364314,3888.3,3887.6,0.128]
[1760784754744,0.128,3888.3,3887.8,2.57214427]
[1760784754950,0.128,3888.3,3888.2,0.1262]
[1760784755148,0.17282081,3888.3,3887.6,0.128]
[1760784755826,0.17282081,3888.3,3887.7,3.00380632]
[1760784756026,0.17282081,3888.3,3887.8,0.4316]
[1760784756225,0.17282081,3888.3,3887.7,2.57220632]
[1760784756444,0.17282081,3888.3,3887.9,0.4316]
[1760784756849,0.04482081,3888.3,3888.2,0.1262]
[1760784757036,0.04482081,3888.3,3887.6,0.27044123]
[1760784757346,0.04482081,3888.3,3887.7,0.28447342]
[1760784757537,0.04482081,3888.3,3887.6,2.57228109]
[1760784757925,0.04482081,3888.3,3887.7,2.57220372]
[1760784758139,0.04482081,3888.3,3887.7,2.57221094]
[1760784758450,0.04482081,3888.3,3888.2,0.1262]
[1760784759038,0.04482081,3888.3,3888.2,2.69808416]
[1760784759233,0.04482081,3888.3,3888.2,0.5578]
[1760784760227,0.04482081,3888.3,3888.2,0.1262]
[1760784760851,0.04482081,3888.3,3887.7,2.5721584]
[1760784761040,0.04482081,3888.3,3887.8,3.20728958]
[1760784761220,0.04482081,3888.3,3887.9,2.57207641]
[1760784761936,0.04482081,3888.3,3887.9,3.00367641]
[1760784764752,1.72282081,3888.5,3887.9,3.00367641]
[1760784765052,0.0448194,3888.3,3887.9,3.00367641]
[1760784765222,0.0448194,3888.3,3888.0,0.69845494]
[1760784765659,0.0448194,3888.3,3888.0,1.13005494]
[1760784765857,0.0448194,3888.3,3888.2,0.1262]
[1760784766365,0.0448194,3888.3,3888.2,0.5578]
[1760784766769,0.0448194,3888.3,3888.2,3.14341644]
[1760784766940,0.40339355,3888.8,3888.3,2.5717546]
[1760784767126,0.04481695,3888.5,3888.3,0.4316]
[1760784767321,0.128,3889.1,3888.5,2.57168017]
[1760784768030,1.728,3889.3,3888.5,2.57168017]
[1760784768370,0.4521,3889.2,3888.7,0.128]
[1760784768666,1.728,3889.0,3888.7,0.128]
[1760784769262,1.728,3888.7,3887.9,2.57208116]
[1760784769477,2.1801,3888.7,3888.0,2.8925808]
[1760784769791,2.1801,3888.7,3888.1,0.1262]
[1760784769961,0.04481815,3888.6,3888.1,0.1262]
[1760784776494,0.49691815,3888.6,3888.1,0.1262]
[1760784777798,0.04481815,3888.6,3888.2,0.4316]
[1760784779811,0.04481815,3888.6,3888.1,0.47124979]
[1760784779972,0.04481815,3888.6,3888.4,0.128]
[1760784780664,0.44816979,3888.6,3888.4,0.128]
[1760784782607,0.4521,3888.5,3888.4,0.128]
[1760784782780,0.44816979,3888.6,3888.4,0.128]
[1760784782982,0.4521,3888.5,3888.4,0.128]
[1760784783192,0.4521,3888.5,3888.1,0.128]
[1760784783700,0.4521,3888.4,3888.1,0.128]
[1760784783906,0.4521,3888.3,3888.1,0.128]
[1760784785675,0.46344314,3888.2,3887.7,0.128]
[1760784786819,0.4378,3888.1,3887.7,0.128]
[1760784787320,0.02564314,3888.2,3887.7,0.128]
[1760784787477,0.4689,3888.0,3887.7,0.128]
[1760784787815,0.04482237,3888.1,3887.7,0.128]
[1760784788140,0.4689,3888.0,3887.7,0.128]
[1760784789487,0.04482237,3888.1,3887.7,0.128]
[1760784789692,0.6827,3887.9,3887.7,0.128]
[1760784789894,0.2138,3887.9,3887.7,0.128]
[1760784790093,0.6827,3887.9,3887.7,0.128]
[1760784792217,0.4689,3887.8,3887.7,0.128]
[1760784792898,0.4689,3887.8,3887.6,0.002]
[1760784793092,0.49454314,3887.7,3887.6,0.002]
[1760784793697,0.53937546,3887.7,3887.6,0.002]
[1760784795123,0.04483232,3887.7,3887.6,0.002]
[1760784797124,0.04483232,3887.7,3887.6,2.57428109]
[1760784797985,0.04483232,3887.7,3887.6,0.002]
[1760784798190,0.04483232,3887.7,3887.6,2.57428109]
[1760784798925,0.04483232,3887.7,3887.6,0.002]
[1760784799634,0.04483232,3887.7,3887.6,2.57428109]
[1760784799802,0.04483232,3887.7,3887.6,3.14530724]
[1760784800506,0.04483232,3887.7,3887.6,3.27330724]
[1760784801151,0.51373232,3887.7,3887.6,0.70102615]
[1760784801308,0.04483232,3887.7,3887.6,0.13]
[1760784805631,0.51373232,3887.7,3887.6,0.13]
[1760784807249,0.51373232,3887.7,3887.6,0.002]
[1760784807546,0.64173232,3887.7,3887.6,0.002]
[1760784815752,7.03173232,3887.7,3887.6,0.002]
[1760784817721,6.9869,3887.7,3887.6,0.002]
[1760784819046,8.7149,3887.7,3887.6,0.002]
[1760784822453,8.246,3887.7,3887.6,0.002]
[1760784822862,6.518,3887.7,3887.6,0.002]
[1760784823064,6.39,3887.7,3887.6,0.4336]
[1760784823358,6.39,3887.7,3887.6,0.002]
[1760784824424,1.728,3887.8,3887.6,0.002]
[1760784824620,1.75364314,3887.8,3887.6,0.002]
[1760784825168,2.21194314,3887.8,3887.6,0.002]
[1760784825536,1.75364314,3887.8,3887.6,0.002]
[1760784827553,0.678,3887.7,3887.6,0.002]
[1760784828257,1.798475,3887.8,3887.6,0.002]
[1760784830235,0.4583,3887.7,3887.6,0.002]
[1760784831261,1.798475,3887.8,3887.6,0.002]
[1760784831657,0.4583,3887.7,3887.6,0.002]
[1760784832466,1.926475,3887.8,3887.6,0.002]
[1760784833191,0.4583,3887.7,3887.6,0.002]
[1760784833366,2.018175,3887.8,3887.6,0.002]
[1760784833553,0.4583,3887.7,3887.6,0.002]
[1760784835961,1.798475,3887.8,3887.6,0.002]
[1760784836168,8.188475,3887.8,3887.6,0.002]
[1760784836362,8.16283186,3887.8,3887.6,0.002]
[1760784836566,0.02564314,3887.7,3887.6,0.002]
[1760784837677,0.48394314,3887.7,3887.6,0.002]
[1760784841548,0.61194314,3887.7,3887.6,0.002]
[1760784841977,0.15364314,3887.7,3887.6,0.002]
[1760784842183,8.27164314,3887.7,3887.6,0.002]
[1760784842487,8.7043,3887.7,3887.6,0.002]
[1760784842690,10.0375351,3887.7,3887.6,0.002]
[1760784843488,9.9095351,3887.7,3887.6,0.002]
[1760784843855,10.31304649,3887.7,3887.6,0.002]
[1760784844479,14.49275425,3887.7,3887.6,0.002]
[1760784846418,14.53759168,3887.7,3887.6,0.002]
[1760784847814,14.94110396,3887.7,3887.6,0.002]
[1760784849113,6.83834971,3887.7,3887.6,0.002]
[1760784849814,8.56634971,3887.7,3887.6,0.4336]
[1760784850112,8.56634971,3887.7,3887.6,0.002]
[1760784852504,8.16283743,3887.7,3887.6,0.002]
[1760784853015,8.118,3887.7,3887.6,0.002]
[1760784853181,8.1628335,3887.7,3887.6,0.002]
[1760784853621,8.118,3887.7,3887.6,0.002]
[1760784856079,8.5789,3887.7,3887.6,0.002]
[1760784856282,9.46054,3887.7,3887.6,0.002]
[1760784856890,3.07054,3887.7,3887.6,0.002]
[1760784857094,2.21454314,3887.7,3887.6,0.002]
[1760784857489,1.728,3887.7,3887.6,0.002]
[1760784857890,1.77283428,3887.7,3887.6,0.002]
[1760784871740,8.16283428,3887.7,3887.6,0.002]
[1760784874307,8.16283428,3887.7,3887.6,0.4336]
[1760784874939,8.16283428,3887.7,3887.6,0.002]
[1760784876960,8.16283428,3887.7,3887.6,0.4336]
[1760784877259,8.16283428,3887.7,3887.6,0.002]
[1760784881544,6.43483428,3887.7,3887.6,2.93124904]
[1760784881855,0.129,3888.5,3887.6,0.79056795]
[1760784882070,0.04482937,3888.2,3887.9,2.57203622]
[1760784882268,0.02564314,3888.4,3888.1,0.1262]
[1760784883370,3.81779053,3888.3,3888.0,0.257]
[1760784883573,2.77148651,3888.2,3887.6,0.002]
[1760784883738,2.20144314,3888.2,3887.7,0.128]
[1760784883934,1.75364314,3888.2,3887.7,0.128]
[1760784884158,0.4478,3888.1,3887.7,0.128]
[1760784884351,0.47344314,3888.0,3887.7,0.128]
[1760784885170,0.51827337,3888.0,3887.7,0.128]
[1760784885670,0.07047337,3888.0,3887.7,0.128]
[1760784886468,0.4478,3887.9,3887.7,0.128]
[1760784886977,0.07047337,3888.0,3887.7,0.128]
[1760784888171,0.51827337,3888.0,3887.7,0.128]
[1760784889076,0.07047337,3888.0,3887.7,0.128]
[1760784889438,0.4478,3887.9,3887.7,0.128]
[1760784889683,0.07047337,3888.0,3887.7,0.128]
[1760784889856,0.4478,3887.9,3887.7,0.128]
[1760784890053,10.91073367,3887.8,3887.6,0.002]
[1760784890351,12.15344692,3887.8,3887.6,0.002]
[1760784891264,0.02564314,3887.7,3887.6,0.002]
[1760784891778,0.47344314,3887.7,3887.6,0.002]
[1760784893318,2.20144314,3887.7,3887.6,0.002]
[1760784895460,8.59144314,3887.7,3887.6,0.002]
[1760784895689,9.82967337,3887.7,3887.6,0.002]
[1760784896566,9.87451063,3887.7,3887.6,0.002]
[1760784897164,8.61063726,3887.7,3887.6,0.002]
[1760784902909,8.16283726,3887.7,3887.6,0.002]
[1760784903111,0.68508144,3887.7,3887.6,3.00588109]
[1760784903413,0.001,3888.5,3888.4,3.20535187]
[1760784903566,0.001,3888.5,3888.4,3.80878838]
[1760784903772,0.001,3888.5,3888.4,4.16946655]
[1760784904290,0.001,3888.5,3888.4,3.88617481]
[1760784905421,0.001,3888.5,3888.4,0.68082294]
[1760784905585,0.001,3888.5,3888.4,0.10310394]
[1760784906316,0.001,3888.5,3888.4,3.30845581]
[1760784906824,0.001,3888.5,3888.4,3.31440752]
[1760784907023,0.001,3888.5,3888.4,3.30845581]
[1760784913112,0.001,3888.5,3888.4,3.43645581]
[1760784913347,0.001,3888.5,3888.4,4.03728797]
[1760784915614,0.001,3888.5,3888.4,4.06254078]
[1760784918826,0.001,3888.5,3888.4,4.03728797]
[1760784925562,0.001,3888.5,3888.4,4.06300548]
[1760784925938,0.001,3888.5,3888.4,4.03728797]
[1760784932660,0.435,3888.5,3888.4,4.03728797]
[1760784932830,0.001,3888.5,3888.4,4.03728797]
[1760784935286,0.4614,3888.5,3888.4,4.03728797]
[1760784935454,0.001,3888.5,3888.4,4.03728797]
[1760784936258,0.4614,3888.5,3888.4,4.03728797]
[1760784939257,0.4614,3888.5,3888.4,3.43645581]
[1760784944773,0.4614,3888.5,3888.4,0.23110394]
[1760784945160,0.4614,3888.5,3888.4,2.80285581]
[1760784945679,0.4614,3888.5,3888.4,0.23110394]
[1760784945851,0.4614,3888.5,3888.4,2.80285581]
[1760784947770,0.4614,3888.5,3888.2,2.57187468]
[1760784947971,0.001,3888.5,3888.2,3.03327468]
[1760784948173,0.4617,3888.4,3888.2,3.03327468]
[1760784948376,0.4617,3888.3,3888.0,0.128]
[1760784948591,0.4617,3888.3,3888.1,0.4617]
[1760784948592,0.48734314,3888.3,3888.1,0.4617]
[1760784948888,6.41564314,3888.2,3887.6,0.002]
[1760784949053,0.2373,3887.7,3887.6,0.002]
[1760784949492,0.699,3887.7,3887.6,0.002]
[1760784950160,0.74383235,3887.7,3887.6,0.002]
[1760784950862,0.76947549,3887.7,3887.6,0.002]
[1760784958015,2.49747549,3887.7,3887.6,0.002]
[1760784958215,3.2583887,3887.7,3887.6,0.002]
[1760784960190,3.38526824,3887.7,3887.6,0.002]
[1760784960429,3.2583887,3887.7,3887.6,0.002]
[1760784963690,18.1740247,3887.7,3887.6,0.002]
[1760784963894,14.97561056,3887.7,3887.6,0.002]
[1760784964091,14.05824656,3887.7,3887.6,0.002]
[1760784964306,14.79805356,3887.7,3887.6,0.002]
[1760784964935,15.57705356,3887.7,3887.6,0.002]
[1760784965627,15.53222121,3887.7,3887.6,0.002]
[1760784965820,34.79727421,3887.7,3887.6,0.002]
[1760784966536,34.56825121,3887.7,3887.6,0.002]
[1760784967640,34.34136921,3887.7,3887.6,0.002]
[1760784967929,32.74854121,3887.7,3887.6,0.002]
[1760784968132,31.51088652,3887.7,3887.6,0.002]
[1760784968336,34.08310145,3887.7,3887.5,0.002]
[1760784968630,25.22859695,3887.6,3887.5,0.002]
[1760784968838,25.20295381,3887.6,3887.5,0.002]
[1760784968997,25.65315381,3887.6,3887.5,0.002]
[1760784969930,26.05274181,3887.6,3887.5,0.002]
[1760784971035,7.19612481,3887.6,3887.5,0.002]
[1760784971204,26.65600481,3887.6,3887.5,0.002]
[1760784971407,26.05509081,3887.6,3887.5,0.002]
[1760784971943,21.67582872,3887.6,3887.5,0.002]
[1760784972234,28.06347972,3887.6,3887.5,0.002]
[1760784972455,27.74547972,3887.6,3887.5,0.002]
[1760784972818,30.31776081,3887.6,3887.5,0.002]
[1760784973266,31.46810681,3887.6,3887.5,0.002]
[1760784974033,28.89582572,3887.6,3887.5,0.002]
[1760784974253,31.84496872,3887.6,3887.5,0.002]
[1760784974435,34.41724981,3887.6,3887.5,0.002]
[1760784975227,35.30724681,3887.6,3887.5,0.002]
[1760784976659,35.35209407,3887.6,3887.5,0.002]
[1760784976956,35.75568524,3887.6,3887.5,0.002]
[1760784977323,40.35962524,3887.6,3887.5,0.002]
[1760784978157,1.728,3887.0,3885.8,0.1517]
[1760784978352,13.47674165,3887.0,3885.8,0.1517]
[1760784978559,13.90129851,3887.0,3885.8,0.1517]
[1760784978726,14.34975796,3887.0,3885.8,0.1517]
[1760784978926,14.34975796,3887.0,3886.7,0.002]
[1760784980941,28.98338511,3887.0,3886.7,0.002]
[1760784981269,28.98338511,3887.0,3885.8,0.1517]
[1760784981270,1.728,3886.6,3885.8,0.1517]
[1760784981451,6.3081853,3885.9,3885.8,0.1517]
[1760784981869,6.75671665,3885.9,3885.8,0.1517]
[1760784982076,6.71186142,3885.9,3885.8,0.1517]
[1760784982269,7.38304756,3885.9,3884.3,2.57446016]
[1760784982478,1.75364314,3885.8,3884.3,2.57446016]
[1760784982674,1.75364314,3885.8,3884.1,0.77419055]
[1760784982971,4.5801853,3885.4,3884.3,0.6336]
[1760784983173,0.02564314,3885.3,3884.3,0.6336]
[1760784983375,0.02564314,3885.3,3884.2,2.57451891]
[1760784983544,0.02564314,3885.3,3884.3,3.08935265]
[1760784983741,4.5801853,3885.0,3884.0,0.6336]
[1760784983944,0.02564314,3884.9,3883.0,2.57528434]
[1760784984164,0.02564314,3884.9,3882.7,0.27809241]
[1760784984165,0.02564314,3884.9,3883.5,0.77421652]
[1760784984380,1.728,3884.5,3882.8,2.575458]
[1760784984579,0.12959827,3885.0,3883.1,2.57520039]
[1760784984580,1.728,3884.1,3883.1,2.57520039]
[1760784984746,1.728,3884.5,3883.2,0.25752004]
[1760784984939,0.12959827,3885.0,3883.5,2.57495522]
[1760784984940,1.728,3884.9,3883.5,2.57495522]
[1760784985141,0.02564314,3884.8,3882.6,0.77421652]
[1760784985338,1.728,3884.5,3882.6,0.77421652]
[1760784985575,1.728,3884.2,3882.7,2.57546692]
[1760784985882,0.02564314,3884.1,3882.3,0.77421652]
[1760784986174,0.02564314,3884.1,3882.2,0.27809241]
[1760784986175,0.65646167,3884.1,3882.4,0.16523089]
[1760784986377,1.728,3883.8,3882.4,0.16523089]
[1760784987045,1.728,3883.8,3882.4,2.57570164]
[1760784987240,1.728,3883.8,3882.6,2.5755779]
[1760784987548,1.728,3883.8,3882.1,0.6]
[1760784987549,0.02564314,3883.7,3883.0,2.57529776]
[1760784987873,0.02564314,3884.0,3883.0,2.57529776]
[1760784988261,0.04487327,3883.6,3883.0,2.57529776]
[1760784988605,0.02564314,3883.5,3882.9,2.57533366]
[1760784988782,0.02564314,3883.5,3883.0,2.57530971]
[1760784989288,0.02564314,3883.5,3882.9,3.09046473]
[1760784989444,0.02564314,3883.5,3882.9,0.51508472]
[1760784990494,0.02564314,3883.5,3882.9,2.57532876]
[1760784990699,0.02564314,3883.5,3883.0,2.57532614]
[1760784990870,0.02564314,3883.5,3882.5,0.6336]
[1760784991074,0.04487327,3883.6,3883.2,2.5751552]
[1760784991374,0.17287327,3883.6,3883.2,2.57518919]
[1760784991572,0.02564314,3883.5,3883.2,2.57518919]
[1760784991794,0.02564314,3883.5,3883.1,2.57525378]
[1760784992165,0.02564314,3883.5,3883.0,2.70328403]
[1760784992761,0.02564314,3883.5,3883.1,2.57524018]
[1760784992965,0.02564314,3883.5,3883.2,2.57519443]
[1760784993162,0.02564314,3883.5,3883.1,2.57521388]
[1760784993655,0.02564314,3883.5,3883.0,0.128]
[1760784994384,4.5801853,3883.3,3882.1,0.6]
[1760784994611,0.02564314,3883.2,3882.2,2.57585904]
[1760784994756,0.02564314,3883.2,3882.2,0.6336]
[1760784994985,0.02564314,3883.2,3882.4,2.57568143]
[1760784995180,0.02564314,3883.2,3882.1,0.6]
[1760784995380,5.26206547,3883.3,3882.3,2.57577631]
[1760784995579,0.57021655,3883.2,3882.3,2.57577631]
[1760784996507,0.57021655,3883.2,3882.2,2.5758412]
[1760784996712,0.57021655,3883.2,3882.3,2.57577744]
[1760784997289,0.04487915,3883.0,3882.3,2.57577744]
[1760784997500,6.382,3882.9,3882.2,2.57583794]
[1760784997706,6.382,3882.9,3882.3,2.57578015]
[1760784998102,6.382,3882.9,3882.2,2.57583907]
[1760784999004,6.382,3882.9,3882.1,3.17790456]
[1760784999384,0.02564314,3882.8,3882.2,2.57584405]
[1760784999786,0.02564314,3882.8,3882.1,0.602]
[1760785000010,0.02564314,3882.8,3882.1,3.1779098]
[1760785000211,0.73752537,3882.8,3882.1,0.602]
[1760785000715,1.14150634,3882.8,3882.1,0.602]
[1760785001038,2.57552733,3882.7,3881.8,0.002]
[1760785001325,2.57552733,3882.7,3879.9,0.1584]
[1760785001326,2.57552733,3882.7,3880.1,0.439]
[1760785001327,0.2262,3881.9,3880.1,0.439]
[1760785001541,1.728,3881.4,3880.3,0.439]
[1760785001684,1.728,3881.7,3880.3,0.439]
[1760785001885,0.4490524,3881.5,3880.4,0.02577053]
[1760785002125,0.4490524,3881.5,3880.5,0.439]
[1760785002315,4.5801853,3880.9,3880.0,1.039]
[1760785002818,2.1681,3881.2,3880.0,1.039]
[1760785003319,0.04490941,3880.7,3880.0,1.039]
[1760785003813,0.02564314,3880.6,3880.0,1.039]
[1760785004312,0.1288,3880.5,3880.0,1.039]
[1760785004497,0.02564314,3880.4,3880.1,0.439]
[1760785005618,0.1288,3880.5,3880.1,0.439]
[1760785006185,0.1288,3880.5,3880.0,0.6]
[1760785006380,0.1288,3880.5,3880.1,0.439]
[1760785007114,0.1288,3880.5,3880.0,0.6]
[1760785007315,0.1288,3880.5,3880.1,0.439]
[1760785007484,0.1288,3880.5,3880.0,0.6]
[1760785007687,0.17370984,3880.5,3880.0,1.039]
[1760785007896,0.17370984,3880.5,3880.0,0.6]
[1760785008123,0.17370984,3880.5,3880.1,0.439]
[1760785008888,1.728,3880.2,3880.0,0.6]
[1760785009087,1.04278141,3880.1,3880.0,0.6]
[1760785009493,1.728,3880.2,3880.0,0.6]